lending/lending_fUSD_20250114
["ID","MTS","AMOUNT","RATE_DAILY","PERIOD"]
[348860670,1736821840686,-500.0,9.882e-05,2]
[348860671,1736821840697,-11.10987742,9.883e-05,2]
[348860672,1736821840709,-488.89012258,9.883e-05,2]
[348860673,1736821840719,-73.11664668,0.0001,2]
[348860674,1736821840733,-466.62588,0.0001,2]
[348860675,1736821841048,-500.0,9.882e-05,2]
[348860676,1736821841058,-27374.2801531,0.0001,2]
[348860677,1736821841069,-474.65104003,0.0001,2]
[348860678,1736821841094,-500.0,9.894e-05,2]
[348860679,1736821841105,-29.1999988,0.0001,2]
[348860680,1736821841118,-349.69019323,0.0001,2]
[348860681,1736821841131,-7681.89403259,0.0001,2]
[348860682,1736821841143,-137894.57208388,0.0001,2]
[348860683,1736821841155,-427.93840201,0.0001,2]
[348860684,1736821841167,-2448.40278486,0.0001,2]
[348860685,1736821841194,-356.55939705,0.0001,2]
[348860686,1736821841207,-62023.59609106,0.0001,2]
[348860687,1736821841488,-500.0,9.882e-05,2]
[348860688,1736821841498,-8585.46180306,0.0001,2]
[348860689,1736821841511,-16012.5,0.0001,2]
[348860690,1736821841524,-2170.14205106,0.0001,2]
[348860691,1736821841535,-342.41312756,0.0001,2]
[348860692,1736821841548,-509.40486528,0.0001,2]
[348860721,1736821842918,-500.0,9.882e-05,2]
[348860722,1736821842927,-500.97367821,9.882e-05,2]
[348860723,1736821842938,-500.0,9.882e-05,2]
[348860724,1736821842948,-500.0,9.882e-05,2]
[348860725,1736821842958,-157.42118797,9.882e-05,2]
[348860726,1736821842968,-359.6665,9.883e-05,2]
[348860727,1736821842978,-359.6665,9.883e-05,2]
[348860728,1736821842987,-81132.16937258,0.0001,2]
[348860729,1736821842999,-338.78343333,0.0001,2]
[348860730,1736821843011,-743.5529996,0.0001,2]
[348860731,1736821843025,-1356.64923014,0.0001,2]
[348860732,1736821843037,-3042.216401,0.0001,2]
[348860733,1736821843050,-3165.53123548,0.0001,2]
[348860734,1736821843063,-495.2572,0.0001,2]
[348860735,1736821843545,-796.041,0.0001,2]
[348860736,1736821843709,-500.0,9.894e-05,2]
[348860737,1736821843719,-104.0,0.0001,2]
[348860748,1736821845805,-5000.0,9.783e-05,2]
[348860749,1736821845816,-500.0,9.882e-05,2]
[348860750,1736821845826,-472.71271265,9.882e-05,2]
[348860751,1736821845837,-500.0,9.882e-05,2]
[348860752,1736821845846,-500.0,9.883e-05,2]
[348860753,1736821845855,-3291.69475427,0.0001,2]
[348860754,1736821845870,-5106.55160518,0.0001,2]
[348860755,1736821845881,-432.82035298,0.0001,2]
[348860756,1736821845893,-8874.39337732,0.0001,2]
[348860757,1736821845952,-615.0,0.0001,2]
[348860758,1736821845963,-112.04806406,0.0001,2]
[348860759,1736821845975,-482.5,0.0001,2]
[348860760,1736821845986,-29642.93185396,0.0001,2]
[348860761,1736821845998,-37543.6328268,0.0001,2]
[348860762,1736821846009,-3367.09382291,0.0001,2]
[348860763,1736821846023,-1883.06070885,0.0001,2]
[348860765,1736821846155,-1680.0,0.0001,2]
[348860767,1736822305886,5788.94,0.00023,120]
[348860768,1736822313150,269.24,8.219e-05,2]
[348860769,1736822313197,377.1,8.219e-05,2]
[348860770,1736822337042,568.072274,0.00023,120]
[348860772,1736822422670,2002.22,0.000115,7]
[348860774,1736822540744,1000.0,0.0002,30]
[348860775,1736822551942,1000.0,0.0002,30]
[348860776,1736822565967,1000.0,0.0002,30]
[348860777,1736822585166,1000.0,0.0002,30]
[348860778,1736822593170,1000.0,0.0002,30]
[348860779,1736822620691,1000.0,0.0002,30]
[348860780,1736822656783,1000.0,0.0002,30]
[348860781,1736822672800,1000.0,0.0002,30]
[348860782,1736822680601,1000.0,0.0002,30]
[348860783,1736822726362,1000.0,0.0002,30]
[348860808,1736823032007,-300.0,8.952e-05,2]
[348860809,1736823032020,-70.55,8.952e-05,2]
[348860810,1736823032030,-1000.0,8.973e-05,2]
[348860811,1736823032039,-250.0,8.985e-05,2]
[348860812,1736823032048,-250.0,8.987e-05,2]
[348860813,1736823032058,-250.0,8.987e-05,2]
[348860814,1736823032068,-654.87,8.987e-05,2]
[348860815,1736823032077,-172.85,8.999e-05,2]
[348860816,1736823032087,-400.0,9.4e-05,3]
[348860817,1736823032096,-150.0,9.479e-05,2]
[348860818,1736823032107,-180.116,9.5e-05,2]
[348860819,1736823032116,-800.0,9.5e-05,3]
[348860820,1736823032125,-1200.0,9.6e-05,3]
[348860821,1736823032134,-1600.0,9.7e-05,3]
[348860822,1736823032144,-150.0,9.782e-05,2]
[348860823,1736823032154,-4654.46,9.783e-05,2]
[348860824,1736823032163,-150.99,9.783e-05,2]
[348860825,1736823032173,-3195.09,9.783e-05,2]
[348860826,1736823032183,-1877.9049529,9.783e-05,2]
[348860827,1736823032520,-8122.0850471,9.783e-05,2]
[348860828,1736823032530,-7419.89,9.783e-05,2]
[348860829,1736823032540,-999.99,9.783e-05,2]
[348860830,1736823032550,-1512.66,9.783e-05,2]
[348860831,1736823032560,-2992.42,9.783e-05,2]
[348860832,1736823032569,-299.99,9.783e-05,2]
[348860833,1736823032580,-150.99,9.783e-05,2]
[348860834,1736823032590,-15562.78,9.783e-05,2]
[348860835,1736823032599,-5466.85,9.783e-05,2]
[348860836,1736823032608,-1311.97,9.783e-05,2]
[348860837,1736823032617,-5524.14,9.783e-05,2]
[348860838,1736823032626,-478.02,9.783e-05,2]
[348860839,1736823032636,-5000.0,9.793e-05,2]
[348860840,1736823032646,-2000.0,9.8e-05,3]
[348860841,1736823032655,-500.0,9.83e-05,2]
[348860842,1736823032665,-2419.266,9.88e-05,2]
[348860843,1736823032674,-153.072,9.88e-05,2]
[348860844,1736823032684,-500.0,9.881e-05,2]
[348860845,1736823032693,-2280.78,9.881e-05,2]
[348860846,1736823032703,-3130.2,9.881e-05,2]
[348860847,1736823032712,-1830.18,9.881e-05,2]
[348860848,1736823032724,-500.0,9.881e-05,2]
[348860849,1736823032733,-1043.17,9.881e-05,2]
[348860850,1736823032743,-1155.24,9.881e-05,2]
[348860851,1736823032752,-2860.58,9.881e-05,2]
[348860852,1736823032762,-895.41,9.881e-05,2]
[348860853,1736823032772,-2439.75,9.881e-05,2]
[348860854,1736823032783,-500.0,9.881e-05,2]
[348860855,1736823032792,-500.0,9.881e-05,2]
[348860856,1736823032802,-500.0,9.881e-05,2]
[348860857,1736823032813,-500.0,9.881e-05,2]
[348860858,1736823032823,-842.76,9.881e-05,2]
[348860859,1736823032832,-500.0,9.881e-05,2]
[348860860,1736823032841,-1809.24,9.881e-05,2]
[348860861,1736823032851,-500.0,9.881e-05,2]
[348860862,1736823032863,-500.0,9.881e-05,2]
[348860863,1736823032874,-500.0,9.882e-05,2]
[348860864,1736823032883,-502.07531379,9.882e-05,2]
[348860865,1736823032893,-500.0,9.882e-05,2]
[348860866,1736823032902,-500.0,9.882e-05,2]
[348860867,1736823032912,-501.25976044,9.882e-05,2]
[348860868,1736823032921,-500.0,9.882e-05,2]
[348860869,1736823032931,-500.0,9.882e-05,2]
[348860870,1736823032940,-500.0,9.882e-05,2]
[348860871,1736823032950,-502.83516245,9.882e-05,2]
[348860872,1736823032959,-500.0,9.882e-05,2]
[348860873,1736823032970,-500.0,9.882e-05,2]
[348860874,1736823032979,-501.8331889,9.882e-05,2]
[348860876,1736823032988,-347.74455453,9.882e-05,2]
[348860878,1736823032997,-500.0,9.882e-05,2]
[348860880,1736823033007,-500.0,9.882e-05,2]
[348860882,1736823033016,-500.0,9.882e-05,2]
[348860884,1736823033025,-500.0,9.882e-05,2]
[348860887,1736823033035,-548.72171923,9.882e-05,2]
[348860890,1736823033044,-500.0,9.882e-05,2]
[348860892,1736823033054,-198.52602556,9.882e-05,2]
[348860894,1736823033064,-500.0,9.882e-05,2]
[348860896,1736823033074,-500.0,9.882e-05,2]
[348860898,1736823033083,-500.0,9.882e-05,2]
[348860900,1736823033092,-500.0,9.882e-05,2]
[348860901,1736823033102,-500.0,9.882e-05,2]
[348860902,1736823033112,-502.2783225,9.882e-05,2]
[348860903,1736823033121,-500.0,9.882e-05,2]
[348860904,1736823033131,-500.0,9.882e-05,2]
[348860905,1736823033142,-506.273913,9.882e-05,2]
[348860906,1736823033151,-500.0,9.882e-05,2]
[348860907,1736823033161,-500.0,9.882e-05,2]
[348860908,1736823033170,-500.0,9.882e-05,2]
[348860909,1736823033180,-502.5428232,9.882e-05,2]
[348860910,1736823033189,-500.0,9.882e-05,2]
[348860911,1736823033199,-500.0,9.882e-05,2]
[348860912,1736823033208,-500.0,9.882e-05,2]
[348860913,1736823033218,-500.0,9.882e-05,2]
[348860914,1736823033229,-500.0,9.882e-05,2]
[348860915,1736823033240,-500.0,9.882e-05,2]
[348860916,1736823033250,-507.04588812,9.882e-05,2]
[348860917,1736823033260,-502.95189649,9.882e-05,2]
[348860918,1736823033269,-500.0,9.882e-05,2]
[348860919,1736823033279,-500.0,9.882e-05,2]
[348860920,1736823033288,-500.0,9.882e-05,2]
[348860921,1736823033297,-502.67382992,9.882e-05,2]
[348860922,1736823033307,-500.0,9.882e-05,2]
[348860923,1736823033316,-502.93271534,9.882e-05,2]
[348860924,1736823033326,-506.09478722,9.882e-05,2]
[348860925,1736823033336,-500.0,9.882e-05,2]
[348860926,1736823033345,-500.0,9.882e-05,2]
[348860927,1736823033354,-503.68604955,9.882e-05,2]
[348860928,1736823033363,-500.0,9.882e-05,2]
[348860929,1736823033373,-500.0,9.882e-05,2]
[348860930,1736823033382,-500.0,9.882e-05,2]
[348860931,1736823033392,-501.79634267,9.882e-05,2]
[348860932,1736823033402,-511.47918328,9.882e-05,2]
[348860933,1736823033411,-500.0,9.882e-05,2]
[348860934,1736823033420,-500.0,9.882e-05,2]
[348860935,1736823033430,-500.77427071,9.882e-05,2]
[348860936,1736823033439,-500.0,9.882e-05,2]
[348860937,1736823033449,-500.0,9.882e-05,2]
[348860938,1736823033459,-500.0,9.882e-05,2]
[348860939,1736823033469,-500.8287415,9.882e-05,2]
[348860940,1736823033479,-500.0,9.882e-05,2]
[348860941,1736823033489,-500.0,9.882e-05,2]
[348860942,1736823033499,-500.0,9.882e-05,2]
[348860943,1736823033508,-500.0,9.882e-05,2]
[348860944,1736823033518,-508.01167748,9.882e-05,2]
[348860945,1736823033527,-500.0,9.882e-05,2]
[348860946,1736823033537,-500.0,9.882e-05,2]
[348860947,1736823033547,-500.0,9.882e-05,2]
[348860948,1736823033556,-503.59485101,9.882e-05,2]
[348860949,1736823033566,-501.57362875,9.882e-05,2]
[348860950,1736823033575,-500.0,9.882e-05,2]
[348860951,1736823033585,-500.0,9.882e-05,2]
[348860952,1736823033595,-500.0,9.882e-05,2]
[348860953,1736823033605,-500.0,9.882e-05,2]
[348860954,1736823033615,-500.0,9.882e-05,2]
[348860955,1736823033625,-500.0,9.882e-05,2]
[348860956,1736823033635,-500.0,9.882e-05,2]
[348860957,1736823033645,-500.0,9.882e-05,2]
[348860958,1736823033654,-500.0,9.882e-05,2]
[348860959,1736823033664,-500.0,9.882e-05,2]
[348860960,1736823033675,-500.0,9.882e-05,2]
[348860961,1736823033684,-502.85226245,9.882e-05,2]
[348860962,1736823033693,-500.0,9.882e-05,2]
[348860963,1736823033703,-500.0,9.882e-05,2]
[348860964,1736823033713,-500.0,9.882e-05,2]
[348860965,1736823033723,-500.0,9.882e-05,2]
[348860966,1736823033732,-500.0,9.882e-05,2]
[348860967,1736823033742,-500.0,9.882e-05,2]
[348860968,1736823033752,-500.0,9.882e-05,2]
[348860969,1736823033762,-500.0,9.882e-05,2]
[348860970,1736823033771,-500.0,9.882e-05,2]
[348860971,1736823033780,-500.0,9.882e-05,2]
[348860972,1736823033790,-500.0,9.882e-05,2]
[348860973,1736823033799,-500.0,9.882e-05,2]
[348860974,1736823033808,-500.0,9.882e-05,2]
[348860975,1736823033818,-500.0,9.882e-05,2]
[348860976,1736823033827,-316.20237445,9.882e-05,2]
[348860977,1736823033842,-326.719332,9.882e-05,2]
[348860978,1736823033851,-500.0,9.882e-05,2]
[348860979,1736823033861,-503.67967204,9.882e-05,2]
[348860980,1736823033870,-500.0,9.882e-05,2]
[348860981,1736823033880,-500.0,9.882e-05,2]
[348860982,1736823033890,-500.0,9.882e-05,2]
[348860983,1736823033899,-500.0,9.882e-05,2]
[348860984,1736823033908,-534.86072608,9.882e-05,2]
[348860985,1736823033917,-500.0,9.882e-05,2]
[348860986,1736823033928,-729.46,9.882e-05,2]
[348860987,1736823033937,-500.0,9.882e-05,2]
[348860988,1736823033946,-500.0,9.882e-05,2]
[348860989,1736823033956,-500.0,9.882e-05,2]
[348860990,1736823033966,-500.0,9.882e-05,2]
[348860991,1736823033976,-500.0,9.882e-05,2]
[348860992,1736823033985,-500.0,9.882e-05,2]
[348860993,1736823033994,-500.0,9.882e-05,2]
[348860994,1736823034003,-500.0,9.882e-05,2]
[348860995,1736823034013,-500.0,9.882e-05,2]
[348860996,1736823034022,-241.72031168,9.882e-05,2]
[348860997,1736823034034,-258.27968832,9.882e-05,2]
[348860998,1736823034044,-500.0,9.882e-05,2]
[348860999,1736823034053,-500.0,9.882e-05,2]
[348861000,1736823034063,-399.52771364,9.882e-05,2]
[348861001,1736823034075,-105.16228636,9.882e-05,2]
[348861002,1736823034084,-500.0,9.882e-05,2]
[348861003,1736823034093,-161.23182127,9.882e-05,2]
[348861004,1736823034104,-338.76817873,9.882e-05,2]
[348861005,1736823034114,-540.6,9.882e-05,2]
[348861006,1736823034123,-500.0,9.882e-05,2]
[348861007,1736823034133,-648.81814296,9.882e-05,2]
[348861008,1736823034143,-500.0,9.882e-05,2]
[348861009,1736823034152,-500.0,9.882e-05,2]
[348861010,1736823034161,-500.0,9.882e-05,2]
[348861011,1736823034171,-500.0,9.882e-05,2]
[348861012,1736823034180,-500.0,9.882e-05,2]
[348861013,1736823034189,-500.0,9.882e-05,2]
[348861014,1736823034199,-507.11299976,9.882e-05,2]
[348861015,1736823034208,-500.0,9.882e-05,2]
[348861016,1736823034218,-480.08619955,9.882e-05,2]
[348861017,1736823034748,-19.91380045,9.882e-05,2]
[348861018,1736823034758,-500.0,9.882e-05,2]
[348861019,1736823034767,-519.68,9.882e-05,2]
[348861020,1736823034776,-500.0,9.882e-05,2]
[348861021,1736823034785,-500.0,9.882e-05,2]
[348861022,1736823034796,-500.0,9.882e-05,2]
[348861023,1736823034805,-460.40619955,9.882e-05,2]
[348861024,1736823034844,-39.59380045,9.882e-05,2]
[348861025,1736823034854,-500.0,9.882e-05,2]
[348861026,1736823034863,-321.74524103,9.882e-05,2]
[348861028,1736823037796,-500.0,9.881e-05,2]
[348861029,1736823037806,-500.0,9.881e-05,2]
[348861030,1736823037815,-1809.35,9.881e-05,2]
[348861031,1736823037825,-178.25475897,9.882e-05,2]
[348861032,1736823037835,-500.0,9.882e-05,2]
[348861033,1736823037844,-500.0,9.882e-05,2]
[348861035,1736823037854,-500.0,9.882e-05,2]
[348861036,1736823037863,-500.0,9.882e-05,2]
[348861037,1736823037872,-500.0,9.882e-05,2]
[348861038,1736823037881,-500.0,9.882e-05,2]
[348861039,1736823037891,-500.0,9.882e-05,2]
[348861040,1736823037900,-500.0,9.882e-05,2]
[348861041,1736823037910,-500.0,9.882e-05,2]
[348861042,1736823037919,-499.7201071,9.882e-05,2]
[348861043,1736823037931,-91.83074955,9.882e-05,2]
[348861044,1736823037941,-365.89909787,9.882e-05,2]
[348861045,1736823037952,-134.10090213,9.882e-05,2]
[348861046,1736823037962,-500.0,9.882e-05,2]
[348861047,1736823037971,-500.0,9.882e-05,2]
[348861048,1736823037981,-500.0,9.882e-05,2]
[348861049,1736823037990,-500.0,9.882e-05,2]
[348861050,1736823037999,-500.0,9.882e-05,2]
[348861051,1736823038009,-500.0,9.882e-05,2]
[348861052,1736823038019,-500.0,9.882e-05,2]
[348861053,1736823038028,-500.0,9.882e-05,2]
[348861054,1736823038037,-500.0,9.882e-05,2]
[348861055,1736823038047,-500.0,9.882e-05,2]
[348861056,1736823038057,-500.0,9.882e-05,2]
[348861057,1736823038066,-500.0,9.882e-05,2]
[348861058,1736823038076,-500.0,9.882e-05,2]
[348861059,1736823038086,-500.0,9.882e-05,2]
[348861060,1736823038095,-500.0,9.882e-05,2]
[348861061,1736823038104,-500.0,9.882e-05,2]
[348861062,1736823038114,-500.0,9.882e-05,2]
[348861063,1736823038123,-484.00786797,9.882e-05,2]
[348861064,1736823038132,-500.0,9.882e-05,2]
[348861065,1736823038141,-582.47,9.882e-05,2]
[348861066,1736823038150,-500.0,9.882e-05,2]
[348861067,1736823038159,-330.55429859,9.882e-05,2]
[348861068,1736823038171,-169.44570141,9.882e-05,2]
[348861069,1736823038180,-500.0,9.882e-05,2]
[348861070,1736823038189,-696.07,9.882e-05,2]
[348861071,1736823038199,-500.0,9.882e-05,2]
[348861072,1736823038208,-352.23422167,9.882e-05,2]
[348861073,1736823038217,-500.0,9.882e-05,2]
[348861075,1736823038226,-282.25007692,9.882e-05,2]
[348861077,1736823038242,-43.39079365,9.882e-05,2]
[348861079,1736823038252,-498.0,9.882e-05,2]
[348861080,1736823038261,-500.0,9.882e-05,2]
[348861081,1736823038270,-298.6209919,9.882e-05,2]
[348861082,1736823038282,-201.3790081,9.882e-05,2]
[348861083,1736823038291,-500.0,9.882e-05,2]
[348861084,1736823038300,-500.0,9.882e-05,2]
[348861085,1736823038310,-500.0,9.882e-05,2]
[348861086,1736823038319,-500.0,9.882e-05,2]
[348861087,1736823038328,-500.0,9.882e-05,2]
[348861088,1736823038338,-500.0,9.882e-05,2]
[348861089,1736823038347,-500.0,9.882e-05,2]
[348861090,1736823038356,-500.0,9.882e-05,2]
[348861091,1736823038366,-500.0,9.882e-05,2]
[348861092,1736823038375,-500.0,9.882e-05,2]
[348861093,1736823038384,-500.0,9.882e-05,2]
[348861094,1736823038394,-500.0,9.882e-05,2]
[348861095,1736823038403,-500.0,9.882e-05,2]
[348861096,1736823038412,-608.73577932,9.882e-05,2]
[348861097,1736823038422,-501.25469402,9.882e-05,2]
[348861098,1736823038431,-500.0,9.882e-05,2]
[348861099,1736823038440,-500.0,9.882e-05,2]
[348861100,1736823038450,-500.0,9.882e-05,2]
[348861101,1736823038460,-425.8080327,9.882e-05,2]
[348861102,1736823038470,-500.0,9.882e-05,2]
[348861103,1736823038479,-504.62078613,9.882e-05,2]
[348861104,1736823038489,-500.0,9.882e-05,2]
[348861105,1736823038498,-500.0,9.882e-05,2]
[348861106,1736823038507,-500.0,9.882e-05,2]
[348861107,1736823038517,-500.0,9.882e-05,2]
[348861108,1736823038526,-502.67296473,9.882e-05,2]
[348861109,1736823038535,-138.69557044,9.882e-05,2]
[348861110,1736823038547,-361.30442956,9.882e-05,2]
[348861111,1736823038557,-501.92928061,9.882e-05,2]
[348861112,1736823038566,-501.98050563,9.882e-05,2]
[348861113,1736823038575,-500.0,9.882e-05,2]
[348861114,1736823038584,-636.19,9.882e-05,2]
[348861115,1736823038594,-501.63471854,9.882e-05,2]
[348861116,1736823038603,-500.0,9.882e-05,2]
[348861117,1736823038612,-501.81558586,9.882e-05,2]
[348861118,1736823038621,-500.0,9.882e-05,2]
[348861119,1736823038630,-489.59236727,9.882e-05,2]
[348861120,1736823038656,-10.40763273,9.882e-05,2]
[348861121,1736823038665,-500.0,9.882e-05,2]
[348861122,1736823038675,-500.0,9.882e-05,2]
[348861123,1736823038684,-500.0,9.882e-05,2]
[348861124,1736823038693,-502.4774414,9.882e-05,2]
[348861125,1736823038703,-407.66560784,9.882e-05,2]
[348861126,1736823038714,-92.33439216,9.882e-05,2]
[348861127,1736823038723,-500.0,9.882e-05,2]
[348861128,1736823038733,-752.73,9.882e-05,2]
[348861129,1736823038743,-501.39805127,9.882e-05,2]
[348861130,1736823038752,-500.0,9.882e-05,2]
[348861131,1736823038761,-500.0,9.882e-05,2]
[348861132,1736823038770,-500.0,9.882e-05,2]
[348861133,1736823038779,-662.08,9.882e-05,2]
[348861134,1736823038788,-500.0,9.882e-05,2]
[348861135,1736823038798,-295.35920657,9.882e-05,2]
[348861136,1736823038809,-204.64079343,9.882e-05,2]
[348861137,1736823038819,-500.0,9.882e-05,2]
[348861138,1736823038828,-501.57308263,9.882e-05,2]
[348861139,1736823038837,-502.00044131,9.882e-05,2]
[348861140,1736823038846,-500.0,9.882e-05,2]
[348861141,1736823038855,-422.90707932,9.882e-05,2]
[348861142,1736823038864,-606.6,9.882e-05,2]
[348861143,1736823038874,-500.0,9.882e-05,2]
[348861144,1736823038883,-497.99236522,9.882e-05,2]
[348861145,1736823038892,-500.0,9.882e-05,2]
[348861146,1736823038902,-164.50770067,9.882e-05,2]
[348861147,1736823038911,-500.0,9.882e-05,2]
[348861148,1736823038920,-500.0,9.882e-05,2]
[348861149,1736823038929,-502.2803218,9.882e-05,2]
[348861150,1736823038938,-500.0,9.882e-05,2]
[348861151,1736823038948,-500.0,9.882e-05,2]
[348861152,1736823038957,-500.0,9.882e-05,2]
[348861153,1736823038966,-500.0,9.882e-05,2]
[348861154,1736823038976,-500.0,9.882e-05,2]
[348861155,1736823038986,-656.47,9.882e-05,2]
[348861156,1736823038995,-500.0,9.882e-05,2]
[348861157,1736823039004,-500.0,9.882e-05,2]
[348861158,1736823039013,-500.0,9.882e-05,2]
[348861159,1736823039022,-500.0,9.882e-05,2]
[348861160,1736823039032,-505.2049603,9.882e-05,2]
[348861161,1736823039041,-500.0,9.882e-05,2]
[348861162,1736823039050,-2284.33,9.882e-05,2]
[348861163,1736823039059,-454.28464394,9.882e-05,2]
[348861164,1736823039068,-243.17593538,9.882e-05,2]
[348861165,1736823039102,-500.0,9.881e-05,2]
[348861166,1736823039111,-50.473753,9.882e-05,2]
[348861167,1736823039122,-206.35031162,9.882e-05,2]
[348861168,1736823039131,-230.87095187,9.882e-05,2]
[348861169,1736823039142,-279.28920155,9.882e-05,2]
[348861170,1736823039151,-22.62135671,9.882e-05,2]
[348861171,1736823039841,-1235.72864329,9.882e-05,2]
[348861173,1736823039851,-500.0,9.882e-05,2]
[348861174,1736823039860,-500.0,9.882e-05,2]
[348861175,1736823039869,-2391.82,9.882e-05,2]
[348861176,1736823039878,-500.0,9.882e-05,2]
[348861177,1736823039887,-500.0,9.882e-05,2]
[348861178,1736823039896,-500.0,9.882e-05,2]
[348861179,1736823039905,-500.0,9.882e-05,2]
[348861180,1736823039914,-56.94578188,9.882e-05,2]
[348861181,1736823040036,-354.65628871,9.882e-05,2]
[348861182,1736823040048,-88.39792941,9.882e-05,2]
[348861183,1736823040057,-500.0,9.882e-05,2]
[348861184,1736823040068,-3655.6035165,9.882e-05,2]
[348861185,1736823040079,-1264.73735038,9.882e-05,2]
[348861186,1736823040234,-1615.42913312,9.882e-05,2]
[348861187,1736823040245,-500.0,9.882e-05,2]
[348861188,1736823040254,-607.95,9.882e-05,2]
[348861189,1736823040263,-500.0,9.882e-05,2]
[348861190,1736823040272,-500.0,9.882e-05,2]
[348861191,1736823040283,-500.0,9.882e-05,2]
[348861192,1736823040292,-500.0,9.882e-05,2]
[348861193,1736823040301,-500.0,9.882e-05,2]
[348861194,1736823040311,-500.0,9.882e-05,2]
[348861195,1736823040320,-506.24952029,9.882e-05,2]
[348861196,1736823040329,-500.0,9.882e-05,2]
[348861197,1736823040339,-500.0,9.882e-05,2]
[348861198,1736823040347,-500.0,9.882e-05,2]
[348861199,1736823040356,-500.0,9.882e-05,2]
[348861200,1736823040365,-500.0,9.882e-05,2]
[348861201,1736823040374,-500.0,9.882e-05,2]
[348861202,1736823040384,-500.0,9.882e-05,2]
[348861203,1736823040393,-500.0,9.882e-05,2]
[348861204,1736823040402,-500.0,9.882e-05,2]
[348861205,1736823040412,-500.0,9.882e-05,2]
[348861206,1736823040420,-500.0,9.882e-05,2]
[348861207,1736823040430,-500.0,9.882e-05,2]
[348861208,1736823040439,-500.0,9.882e-05,2]
[348861209,1736823040449,-500.0,9.882e-05,2]
[348861210,1736823040458,-2427.76,9.882e-05,2]
[348861211,1736823040467,-500.0,9.882e-05,2]
[348861212,1736823040477,-454.66904774,9.882e-05,2]
[348861213,1736823040486,-500.0,9.882e-05,2]
[348861214,1736823040495,-500.0,9.882e-05,2]
[348861215,1736823040504,-500.0,9.882e-05,2]
[348861216,1736823040512,-500.0,9.882e-05,2]
[348861217,1736823040522,-500.0,9.882e-05,2]
[348861218,1736823040531,-500.0,9.882e-05,2]
[348861219,1736823040540,-502.73244364,9.882e-05,2]
[348861220,1736823040549,-500.0,9.882e-05,2]
[348861221,1736823040558,-500.0,9.882e-05,2]
[348861222,1736823040567,-500.0,9.882e-05,2]
[348861223,1736823040577,-4640.73,9.882e-05,2]
[348861224,1736823040587,-500.0,9.882e-05,2]
[348861225,1736823040595,-500.0,9.882e-05,2]
[348861226,1736823040604,-500.0,9.882e-05,2]
[348861227,1736823040614,-500.0,9.882e-05,2]
[348861228,1736823040623,-241.52927451,9.882e-05,2]
[348861229,1736823040632,-500.0,9.882e-05,2]
[348861230,1736823040641,-500.0,9.882e-05,2]
[348861231,1736823040650,-500.0,9.882e-05,2]
[348861232,1736823040660,-4043.53,9.882e-05,2]
[348861233,1736823040669,-500.0,9.882e-05,2]
[348861234,1736823040679,-501.10692456,9.882e-05,2]
[348861235,1736823040688,-502.44035828,9.882e-05,2]
[348861236,1736823040697,-500.0,9.882e-05,2]
[348861237,1736823040706,-961.41,9.882e-05,2]
[348861238,1736823040715,-500.0,9.882e-05,2]
[348861239,1736823040726,-1184.21,9.882e-05,2]
[348861240,1736823040735,-555.73,9.882e-05,2]
[348861241,1736823040744,-500.0,9.882e-05,2]
[348861242,1736823040753,-500.0,9.882e-05,2]
[348861243,1736823040762,-500.0,9.882e-05,2]
[348861244,1736823040771,-500.0,9.882e-05,2]
[348861245,1736823040780,-500.0,9.882e-05,2]
[348861246,1736823040789,-1046.49,9.882e-05,2]
[348861247,1736823040799,-623.48,9.882e-05,2]
[348861248,1736823040808,-503.94011463,9.882e-05,2]
[348861249,1736823040817,-608.97,9.882e-05,2]
[348861250,1736823040827,-217.98422876,9.882e-05,2]
[348861251,1736823041037,-522.22,9.882e-05,2]
[348861252,1736823041047,-500.0,9.882e-05,2]
[348861253,1736823041055,-508.21787732,9.882e-05,2]
[348861254,1736823041064,-500.0,9.882e-05,2]
[348861255,1736823041074,-500.0,9.882e-05,2]